bitfinex/quotes_BTCUSD_20240905
["timestamp","ask_amount","ask_price","bid_price","bid_amount"]
[1725555266018,0.54616134,56278.0,56277.0,0.27532]
[1725555266373,0.01309434,56278.0,56277.0,0.27532]
[1725555266593,0.19978334,56278.0,56277.0,0.27632]
[1725555266829,0.19978334,56278.0,56277.0,0.27532]
[1725555266830,0.90153934,56278.0,56277.0,0.27532]
[1725555267064,0.898445,56278.0,56277.0,0.27532]
[1725555267291,0.888445,56278.0,56277.0,0.27832]
[1725555267538,1.251823,56278.0,56277.0,0.16002]
[1725555267746,1.251823,56278.0,56277.0,0.16402]
[1725555267959,0.896445,56278.0,56277.0,0.16302]
[1725555268167,0.888445,56278.0,56277.0,0.16302]
[1725555268377,0.1,56288.0,56286.0,0.00192]
[1725555268605,0.177676,56282.0,56281.0,0.00192]
[1725555268831,1.243735,56282.0,56281.0,0.00192]
[1725555269051,1.343735,56282.0,56281.0,0.00192]
[1725555269977,1.243756,56281.0,56280.0,0.01692]
[1725555270193,1.343756,56281.0,56280.0,0.01692]
[1725555271560,1.344756,56281.0,56280.0,0.01692]
[1725555271785,0.634038,56281.0,56280.0,0.01692]
[1725555272014,0.989397,56281.0,56280.0,0.01692]
[1725555274827,0.001,56281.0,56280.0,0.13992]
[1725555275044,0.001,56281.0,56280.0,1.03851173]
[1725555275960,0.001,56281.0,56280.0,1.39387773]
[1725555276432,0.01130848,56293.0,56292.0,0.00192]
[1725555276663,0.99951548,56293.0,56292.0,0.00192]
[1725555276907,0.18894948,56293.0,56292.0,0.27582]
[1725555277137,0.000817,56293.0,56292.0,0.468465]
[1725555277625,0.017817,56293.0,56292.0,0.29228595]
[1725555278769,1.47684973,56293.0,56292.0,0.002]
[1725555278982,1.261307,56293.0,56292.0,0.002]
[1725555279224,1.70759,56293.0,56292.0,0.001]
[1725555279435,1.70759,56293.0,56292.0,0.006]
[1725555279654,1.76511535,56293.0,56292.0,0.005]
[1725555279876,0.177667,56285.0,56284.0,0.00138595]
[1725555280155,0.533001,56285.0,56284.0,0.01638595]
[1725555280388,1.243669,56285.0,56284.0,0.01638595]
[1725555281772,1.244669,56285.0,56284.0,0.02338595]
[1725555281984,1.25510294,56285.0,56284.0,0.02338595]
[1725555282889,1.25510294,56285.0,56284.0,0.03138595]
[1725555283322,1.61043694,56285.0,56284.0,0.015]
[1725555283539,1.57064567,56285.0,56284.0,0.015]
[1725555284205,1.243714,56283.0,56282.0,0.00138595]
[1725555284419,0.988367,56283.0,56282.0,0.00138595]
[1725555285785,1.343714,56283.0,56282.0,0.00138595]
[1725555286013,0.988367,56283.0,56282.0,0.00138595]
[1725555286221,1.343714,56283.0,56282.0,0.00138595]
[1725555287560,1.343714,56283.0,56282.0,0.00085176]
[1725555288978,1.34453,56283.0,56282.0,0.00085176]
[1725555289446,0.100816,56283.0,56278.0,0.00085176]
[1725555289659,0.100816,56283.0,56277.0,0.001634]
[1725555289660,0.533067,56278.0,56277.0,0.001634]
[1725555289887,1.243823,56278.0,56277.0,0.001634]
[1725555290102,1.40961574,56278.0,56277.0,0.001634]
[1725555290317,1.76499374,56278.0,56277.0,0.001634]
[1725555291193,0.59885974,56278.0,56277.0,0.16788576]
[1725555291456,0.533067,56278.0,56277.0,0.16788576]
[1725555291693,0.888445,56278.0,56277.0,0.16788576]
[1725555292195,0.533067,56278.0,56277.0,0.16788576]
[1725555293324,0.888445,56278.0,56277.0,0.16788576]
[1725555293545,0.533067,56278.0,56277.0,0.16788576]
[1725555293983,0.888445,56278.0,56277.0,0.16788576]
[1725555294711,0.177689,56278.0,56277.0,0.16788576]
[1725555294931,0.533067,56278.0,56277.0,0.16788576]
[1725555295357,0.355376,56279.0,56278.0,0.015]
[1725555295571,0.533062,56279.0,56278.0,0.01585176]
[1725555296031,0.888438,56279.0,56278.0,0.01585176]
[1725555296248,0.533062,56279.0,56278.0,0.01585176]
[1725555296467,0.177686,56279.0,56278.0,0.01585176]
[1725555296690,0.002,56279.0,56278.0,0.01585176]
[1725555296942,0.003,56279.0,56278.0,1.16235017]
[1725555297176,0.003,56279.0,56278.0,1.51772817]
[1725555298961,0.001,56279.0,56278.0,1.51772817]
[1725555299173,0.002,56279.0,56278.0,1.52672817]
[1725555299845,0.001,56279.0,56278.0,1.52672817]
[1725555300059,0.001,56279.0,56278.0,1.72223913]
[1725555300696,0.001,56279.0,56278.0,1.72068572]
[1725555301999,0.001,56279.0,56278.0,1.72231772]
[1725555302681,0.001,56279.0,56278.0,1.72031772]
[1725555302901,0.001,56279.0,56278.0,1.72231772]
[1725555303565,0.001,56279.0,56278.0,0.46867276]
[1725555303836,0.001,56279.0,56278.0,0.29098376]
[1725555304044,0.001,56279.0,56278.0,1.75034949]
[1725555304467,0.001,56279.0,56278.0,1.39497149]
[1725555306610,0.001,56279.0,56278.0,0.29098376]
[1725555306856,0.88943,56279.0,56278.0,0.03648376]
[1725555307085,1.244802,56279.0,56278.0,0.03648376]
[1725555307728,0.88943,56279.0,56278.0,0.03648376]
[1725555309934,0.001,56279.0,56278.0,0.03648376]
[1725555310601,0.178686,56279.0,56278.0,0.03648376]
[1725555310811,0.001,56279.0,56278.0,0.03648376]
[1725555311021,0.178686,56279.0,56278.0,0.03648376]
[1725555311294,0.88943,56279.0,56278.0,0.03648376]
[1725555311524,1.244802,56279.0,56278.0,0.03648376]
[1725555313316,0.88943,56279.0,56278.0,0.03648376]
[1725555314229,0.890246,56279.0,56278.0,0.03648376]
[1725555314447,0.534874,56279.0,56278.0,0.03648376]
[1725555314657,0.179502,56279.0,56278.0,0.03648376]
[1725555314868,0.179502,56279.0,56278.0,0.14828376]
[1725555315292,0.534874,56279.0,56278.0,0.14828376]
[1725555315529,0.534874,56279.0,56278.0,0.03648376]
[1725555316146,0.179502,56279.0,56278.0,0.03648376]
[1725555316354,0.534874,56279.0,56278.0,0.03648376]
[1725555317124,1.005146,56279.0,56278.0,0.02148376]
[1725555317331,1.005146,56279.0,56278.0,0.020632]
[1725555317332,1.78154796,56279.0,56278.0,0.020632]
[1725555317583,1.88154796,56279.0,56278.0,0.020632]
[1725555317855,1.8846426,56279.0,56278.0,0.020632]
[1725555318316,0.0695686,56279.0,56278.0,0.02748376]
[1725555318539,0.00391064,56279.0,56278.0,0.02748376]
[1725555318771,0.53896864,56279.0,56278.0,0.03103713]
[1725555318995,0.53896864,56279.0,56278.0,0.01748376]
[1725555318996,0.00591064,56279.0,56278.0,0.01748376]
[1725555319228,0.00591064,56279.0,56278.0,0.02103716]
[1725555319445,0.00691064,56279.0,56278.0,0.02103716]
[1725555319630,0.00691064,56279.0,56278.0,0.01748376]
[1725555321399,0.18459664,56279.0,56278.0,0.01748376]
[1725555321640,0.65716864,56279.0,56278.0,0.00248376]
[1725555321877,1.53364074,56279.0,56278.0,0.001632]
[1725555323282,1.89956608,56279.0,56278.0,0.001632]
[1725555324048,1.54419408,56279.0,56278.0,0.001632]
[1725555324382,1.89647144,56279.0,56278.0,0.001632]
[1725555326412,1.54109944,56279.0,56278.0,0.001632]
[1725555326850,1.89647144,56279.0,56278.0,0.001632]
[1725555327946,1.54109944,56279.0,56278.0,0.001632]
[1725555328163,0.636874,56279.0,56278.0,0.00248376]
[1725555328397,0.636874,56279.0,56278.0,0.01748376]
[1725555328623,0.992246,56279.0,56278.0,0.016632]
[1725555328846,0.992246,56279.0,56278.0,0.01248376]
[1725555329285,0.003816,56279.0,56278.0,0.56561549]
[1725555329511,0.003816,56279.0,56278.0,0.67791549]
[1725555330168,0.003816,56279.0,56278.0,1.08738163]
[1725555330403,0.003816,56279.0,56278.0,1.44275963]
[1725555331082,0.003816,56279.0,56278.0,0.81775076]
[1725555331289,0.001816,56279.0,56278.0,0.81775076]
[1725555331735,0.001816,56279.0,56278.0,0.47137276]
[1725555331953,0.001816,56279.0,56278.0,1.18212876]
[1725555332189,0.001816,56279.0,56278.0,1.80913763]
[1725555332412,0.001816,56279.0,56278.0,1.98464859]
[1725555332624,0.001816,56279.0,56278.0,2.00564859]
[1725555332625,0.002816,56279.0,56278.0,2.00564859]
[1725555333062,0.002816,56279.0,56278.0,2.36102659]
[1725555335105,0.002816,56279.0,56278.0,2.38102659]
[1725555335317,0.002816,56279.0,56278.0,2.4341291]
[1725555335557,0.000816,56283.0,56282.0,1.29158676]
[1725555335770,0.000816,56283.0,56282.0,2.42991628]
[1725555336229,0.000816,56283.0,56282.0,2.73233459]
[1725555336448,0.000816,56283.0,56282.0,2.91173663]
[1725555336666,0.000816,56283.0,56282.0,2.83233459]
[1725555336877,0.000816,56283.0,56282.0,2.84633459]
[1725555337102,0.000816,56283.0,56282.0,2.89924418]
[1725555337309,0.000816,56283.0,56282.0,2.91324418]
[1725555337515,0.000816,56283.0,56282.0,2.86033459]
[1725555338162,0.000816,56283.0,56282.0,2.87069766]
[1725555338783,0.000816,56283.0,56282.0,2.50498159]
[1725555338993,0.000816,56283.0,56282.0,2.48198159]
[1725555339650,0.000816,56283.0,56282.0,2.00662859]
[1725555339879,0.000816,56283.0,56282.0,2.02662859]
[1725555340750,0.000816,56283.0,56282.0,2.50498159]
[1725555341815,0.000816,56283.0,56282.0,2.86033459]
[1725555342088,0.000817,56293.0,56292.0,1.88945676]
[1725555342303,0.000817,56293.0,56292.0,2.73288859]
[1725555342570,2.0,56300.0,56299.0,2.17888963]
[1725555342778,2.0,56300.0,56299.0,2.35440059]
[1725555343244,2.0,56300.0,56299.0,2.08476972]
[1725555343456,2.0,56300.0,56299.0,2.10776972]
[1725555344125,2.0,56300.0,56299.0,2.12176972]
[1725555344577,1.75819732,56300.0,56299.0,2.09676972]
[1725555344794,1.75819732,56300.0,56299.0,2.09876972]
[1725555345215,1.75819732,56300.0,56299.0,2.11276972]
[1725555348929,1.75819732,56300.0,56299.0,2.12374972]
[1725555349350,1.75819732,56300.0,56299.0,2.12538172]
[1725555349641,1.75901332,56300.0,56299.0,2.12538172]
[1725555349821,1.75901332,56300.0,56299.0,2.14838172]
[1725555350487,1.75901332,56300.0,56299.0,2.23740172]
[1725555350926,1.75901332,56300.0,56299.0,2.59264772]
[1725555351186,0.60906488,56300.0,56299.0,2.99789372]
[1725555351435,0.60906488,56300.0,56299.0,2.98389372]
[1725555351436,0.53801688,56300.0,56299.0,2.98389372]
[1725555351888,0.43144488,56300.0,56299.0,2.98389372]
[1725555352112,0.23849688,56300.0,56299.0,2.96989372]
[1725555352328,0.23849688,56300.0,56299.0,3.05813372]
[1725555352549,0.23849688,56300.0,56299.0,3.04413372]
[1725555352784,0.20297288,56300.0,56299.0,3.04413372]
[1725555353011,0.13192488,56300.0,56299.0,2.68888772]
[1725555353224,0.09640088,56300.0,56299.0,2.68888772]
[1725555353505,0.09640088,56300.0,56299.0,2.71367605]
[1725555354136,0.09640088,56300.0,56299.0,2.35843005]
[1725555354978,0.09640088,56300.0,56299.0,2.71367605]
[1725555355186,0.09640088,56300.0,56299.0,2.35843005]
[1725555357109,0.09640088,56300.0,56299.0,2.71367605]
[1725555357332,0.000817,56313.0,56312.0,1.54055663]
[1725555357573,0.000817,56313.0,56312.0,1.85776759]
[1725555358661,0.000817,56313.0,56312.0,1.86976759]
[1725555358882,0.000817,56313.0,56312.0,1.88376759]
[1725555359348,0.000817,56313.0,56312.0,1.74206759]
[1725555359791,0.000817,56313.0,56312.0,1.74206759]
[1725555360258,0.16330665,56324.0,56320.0,0.177555]
[1725555360512,0.16330665,56324.0,56313.0,0.355153]
[1725555360513,0.355035,56333.0,56327.0,0.01585176]
[1725555360733,0.178348,56328.0,56327.0,0.01585176]
[1725555360958,0.533411,56328.0,56327.0,0.01585176]
[1725555361428,1.243537,56328.0,56327.0,0.01585176]
[1725555361642,0.177534,56327.0,56326.0,0.01]
[1725555361870,0.887672,56327.0,56326.0,0.015]
[1725555362095,0.887672,56327.0,56326.0,0.01]
[1725555362287,1.242741,56327.0,56326.0,0.01085176]
[1725555362519,1.242741,56327.0,56326.0,0.01585176]
[1725555362960,1.242741,56327.0,56326.0,0.02185176]
[1725555362961,0.887672,56327.0,56326.0,0.02185176]
[1725555363389,1.149472,56327.0,56326.0,0.02185176]
[1725555364045,1.16033643,56327.0,56326.0,0.02185176]
[1725555364283,1.16033643,56327.0,56326.0,0.19938876]
[1725555364284,0.1149,56327.0,56326.0,0.19938876]
[1725555364510,0.1149,56327.0,56326.0,0.02185176]
[1725555364936,0.1149,56327.0,56326.0,0.20338876]
[1725555365162,0.1149,56327.0,56326.0,0.55846376]
[1725555365369,0.1149,56327.0,56326.0,0.20338876]
[1725555365798,0.1149,56327.0,56326.0,0.02585176]
[1725555367701,0.292434,56327.0,56326.0,0.02585176]
[1725555367894,1.357641,56327.0,56326.0,0.02585176]
[1725555368551,1.002572,56327.0,56326.0,0.02585176]
[1725555369253,1.156072,56327.0,56326.0,0.02585176]
[1725555369468,1.511141,56327.0,56326.0,0.01]
[1725555369683,1.96621,56327.0,56326.0,0.01]
[1725555370112,2.25861005,56327.0,56326.0,0.01]
[1725555370520,2.25861005,56327.0,56326.0,0.006]
[1725555370997,1.257072,56327.0,56326.0,0.00085176]
[1725555371220,1.257072,56327.0,56326.0,0.01585176]
[1725555371221,0.293434,56327.0,56326.0,0.01585176]
[1725555371434,0.647503,56327.0,56326.0,0.01585176]
[1725555372093,0.294434,56327.0,56326.0,0.01585176]
[1725555372308,0.1159,56327.0,56326.0,0.01585176]
[1725555372530,0.292434,56327.0,56326.0,0.01585176]
[1725555372743,0.1149,56327.0,56326.0,0.01585176]
[1725555373206,0.000817,56328.0,56327.0,0.192534]
[1725555373420,0.000817,56328.0,56327.0,0.015]
[1725555373636,0.178348,56328.0,56327.0,0.015]
[1725555373863,0.533411,56328.0,56327.0,0.015]
[1725555374323,0.000817,56328.0,56327.0,0.015]
[1725555374548,0.000817,56328.0,56327.0,0.018]
[1725555374736,0.178348,56328.0,56327.0,0.018]
[1725555375168,0.178348,56328.0,56327.0,0.022]
[1725555375854,0.173348,56328.0,56327.0,0.022]
[1725555376085,0.294321,56332.0,56331.0,0.01585176]
[1725555376310,0.649358,56332.0,56331.0,0.01585176]
[1725555377436,0.650358,56332.0,56331.0,0.01585176]
[1725555377856,1.005395,56332.0,56331.0,0.01585176]
[1725555380292,1.360432,56332.0,56331.0,0.01585176]
[1725555380535,1.004395,56332.0,56331.0,0.01585176]
[1725555380743,1.004395,56332.0,56331.0,0.01885176]
[1725555380948,1.359432,56332.0,56331.0,0.01885176]
[1725555381167,1.359432,56332.0,56331.0,0.02285176]
[1725555381834,1.004395,56332.0,56331.0,0.02285176]
[1725555382273,0.649358,56332.0,56331.0,0.02285176]
[1725555382494,1.004395,56332.0,56331.0,0.02285176]
[1725555382694,0.532548,56333.0,56332.0,0.01585176]
[1725555382898,0.177517,56333.0,56332.0,0.01585176]
[1725555383389,0.00082,56336.0,56335.0,0.01585176]
[1725555383851,0.00082,56336.0,56335.0,0.19336076]
[1725555384082,0.00082,56336.0,56335.0,0.54837976]
[1725555384304,0.00082,56336.0,56335.0,1.17759876]
[1725555384934,0.00082,56336.0,56335.0,1.18259876]
[1725555385346,0.00082,56336.0,56335.0,1.18159876]
[1725555385560,0.00082,56336.0,56335.0,1.19259876]
[1725555385979,0.00082,56336.0,56335.0,1.05639876]
[1725555386390,0.00082,56336.0,56335.0,0.01985176]
[1725555386391,0.178326,56336.0,56335.0,0.01985176]
[1725555386606,0.00082,56336.0,56335.0,0.01985176]
[1725555386812,0.00082,56336.0,56335.0,0.01585176]
[1725555387204,0.00082,56336.0,56335.0,0.04385176]
[1725555387205,0.178326,56336.0,56335.0,0.04385176]
[1725555387559,0.178326,56336.0,56335.0,0.01585176]
[1725555387766,0.178326,56336.0,56335.0,0.20536076]
[1725555387767,0.00082,56336.0,56335.0,0.20536076]
[1725555387992,0.00082,56336.0,56335.0,0.03885176]
[1725555388217,0.00082,56336.0,56335.0,0.02685176]
[1725555388418,0.00082,56336.0,56335.0,0.01585176]
[1725555388622,0.00082,56336.0,56335.0,0.01985176]
[1725555388821,0.178326,56336.0,56335.0,0.01585176]
[1725555389021,0.00082,56336.0,56335.0,0.01585176]
[1725555389194,0.00082,56336.0,56335.0,0.19336076]
[1725555389613,0.00082,56336.0,56335.0,0.19736076]
[1725555389931,0.00082,56336.0,56335.0,0.55537976]
[1725555390290,0.00082,56336.0,56335.0,0.91039876]
[1725555390732,0.00082,56336.0,56335.0,0.55537976]
[1725555390945,0.00082,56336.0,56335.0,0.02285176]
[1725555391121,1.00465,56336.0,56335.0,0.02285176]
[1725555391343,1.21990635,56336.0,56335.0,0.02285176]
[1725555391562,1.57491835,56336.0,56335.0,0.00785176]
[1725555391999,1.57491835,56336.0,56335.0,0.007]
[1725555392000,2.08063035,56336.0,56335.0,0.007]
[1725555392237,2.18063035,56336.0,56335.0,0.007]
[1725555392442,2.24543175,56336.0,56335.0,0.007]
[1725555392849,2.24543175,56336.0,56335.0,0.003]
[1725555393247,2.24543175,56336.0,56335.0,0.004]
[1725555393656,2.24543175,56336.0,56335.0,0.001]
[1725555394065,2.24543175,56336.0,56335.0,0.002]
[1725555394066,2.11752776,56336.0,56335.0,0.002]
[1725555395371,2.11752776,56336.0,56335.0,0.001]
[1725555395837,2.11752776,56336.0,56335.0,0.002]
[1725555396038,3.23308791,56336.0,56335.0,0.002]
[1725555396587,3.24923615,56336.0,56335.0,0.002]
[1725555397037,3.72494815,56336.0,56335.0,0.002]
[1725555397243,3.90050841,56336.0,56335.0,0.002]
[1725555397706,3.75277382,56336.0,56335.0,0.002]
[1725555397925,3.75358882,56336.0,56335.0,0.002]
[1725555398168,3.48431506,56336.0,56335.0,0.002]
[1725555398390,4.30610282,56336.0,56335.0,0.002]
[1725555398598,4.23490282,56336.0,56335.0,0.002]
[1725555400101,4.16704982,56336.0,56335.0,0.002]
[1725555400769,3.65323882,56336.0,56335.0,0.002]
[1725555403090,3.64409058,56336.0,56335.0,0.002]
[1725555403317,3.65123882,56336.0,56335.0,0.002]
[1725555404010,3.65323882,56336.0,56335.0,0.002]
[1725555405556,3.12856858,56336.0,56335.0,0.002]
[1725555405767,3.12356858,56336.0,56335.0,0.002]
[1725555407065,2.76855658,56336.0,56335.0,0.002]
[1725555407533,2.59003091,56336.0,56335.0,0.002]
[1725555407699,2.44633091,56336.0,56335.0,0.002]
[1725555411894,1.51192776,56331.0,56330.0,0.00085176]
[1725555412099,1.61192776,56331.0,56330.0,0.00085176]
[1725555412303,1.40077837,56331.0,56330.0,0.00085176]
[1725555412877,1.57830037,56331.0,56330.0,0.00085176]
[1725555413287,1.242696,56329.0,56328.0,0.00163]
[1725555413695,1.697752,56329.0,56328.0,0.00163]
[1725555414059,2.3271261,56329.0,56328.0,0.00163]
[1725555415935,2.3281261,56329.0,56328.0,0.00163]
[1725555416141,2.3301261,56329.0,56328.0,0.00163]
[1725555419016,1.9750701,56329.0,56328.0,0.00163]
[1725555419223,1.759596,56329.0,56328.0,0.27098176]
[1725555419827,1.40454,56329.0,56328.0,0.27098176]
[1725555421355,1.40454,56329.0,56328.0,0.46351276]
[1725555421356,0.4169,56329.0,56328.0,0.46351276]
[1725555421571,0.4169,56329.0,56328.0,0.81857576]
[1725555421747,0.4169,56329.0,56328.0,1.17363876]
[1725555422174,0.4149,56329.0,56328.0,1.17363876]
[1725555422582,0.4149,56329.0,56328.0,1.53170176]
[1725555422808,0.4139,56329.0,56328.0,1.71721272]
[1725555423039,0.998,56335.0,56333.0,1.53695976]
[1725555423040,0.4139,56334.0,56333.0,1.53695976]
[1725555423267,0.4139,56334.0,56333.0,1.75243386]
[1725555423505,1.4119,56335.0,56334.0,1.25843876]
[1725555423736,1.1259,56335.0,56334.0,2.06587472]
[1725555423980,1.1259,56335.0,56334.0,2.46389972]
[1725555423981,0.4139,56335.0,56334.0,2.46389972]
[1725555424212,0.000816,56348.0,56347.0,0.20532276]
[1725555424446,0.000816,56348.0,56347.0,2.18332802]
[1725555424674,0.00082,56385.0,56356.0,1.28995276]
[1725555424675,0.38252873,56383.0,56356.0,1.28995276]
[1725555424908,0.177372,56379.0,56356.0,1.74883782]
[1725555425134,0.35474,56380.0,56356.0,1.76883782]
[1725555425366,0.17736,56383.0,56356.0,2.37302382]
[1725555425583,0.00082,56385.0,56356.0,2.37302382]
[1725555426049,0.178173,56385.0,56356.0,2.44025496]
[1725555426340,0.00082,56385.0,56359.0,1.64475276]
[1725555426569,0.00082,56385.0,56359.0,2.13226372]
[1725555426791,0.00082,56385.0,56359.0,2.48713072]
[1725555427009,0.00082,56385.0,56359.0,2.13226372]
[1725555427674,0.00082,56385.0,56359.0,2.14626372]
[1725555427906,0.00082,56385.0,56359.0,2.13226372]
[1725555428105,0.00082,56385.0,56359.0,1.75239672]
[1725555428317,0.1228,56374.0,56359.0,0.41028476]
[1725555428525,0.177406,56368.0,56359.0,0.76515176]
[1725555428727,0.177406,56368.0,56359.0,0.75115176]
[1725555428929,0.17822,56370.0,56359.0,1.10601876]
[1725555429164,0.17822,56370.0,56359.0,1.12001876]
[1725555429586,0.00082,56370.0,56359.0,1.09201876]
[1725555429811,0.00082,56370.0,56359.0,0.73715176]
[1725555430064,0.177404,56369.0,56359.0,0.75115176]
[1725555430271,0.00082,56370.0,56359.0,1.10601876]
[1725555430473,0.177404,56369.0,56359.0,0.76515176]
[1725555430679,0.177404,56369.0,56359.0,1.12001876]
[1725555430896,0.00082,56370.0,56359.0,1.10601876]
[1725555430897,0.178221,56370.0,56359.0,1.10601876]
[1725555431114,0.178221,56370.0,56359.0,1.12001876]
[1725555431673,0.00082,56370.0,56359.0,1.12001876]
[1725555431880,0.17822,56370.0,56359.0,1.10601876]
[1725555432114,0.17822,56370.0,56359.0,1.12001876]
[1725555432283,0.00082,56370.0,56359.0,1.30552972]
[1725555432488,0.00082,56370.0,56359.0,1.66039672]
[1725555432833,0.00082,56370.0,56359.0,1.66239672]
[1725555433925,0.00082,56370.0,56359.0,1.72063672]
[1725555434719,0.00082,56370.0,56359.0,1.66239672]
[1725555434936,0.00082,56370.0,56359.0,1.66039672]
[1725555436408,0.00082,56370.0,56359.0,1.66239672]
[1725555436613,0.00082,56370.0,56359.0,1.66039672]
[1725555436826,0.00082,56370.0,56359.0,1.08831876]
[1725555437055,0.00082,56370.0,56359.0,1.26382972]
[1725555437270,0.00082,56370.0,56359.0,1.61869672]
[1725555437515,0.00082,56370.0,56359.0,1.62069672]
[1725555440852,0.00082,56370.0,56359.0,1.61869672]
[1725555441063,0.00082,56370.0,56359.0,1.60469672]
[1725555441289,0.00082,56370.0,56359.0,1.61869672]
[1725555441751,0.00082,56370.0,56359.0,1.60669672]
[1725555442139,0.00082,56370.0,56359.0,1.62069672]
[1725555442570,0.00082,56370.0,56359.0,1.61869672]
[1725555443222,0.1276,56366.0,56359.0,1.46139672]
[1725555443437,0.00082,56370.0,56359.0,1.46139672]
[1725555443870,0.00082,56370.0,56359.0,1.46339672]
[1725555444289,0.00082,56370.0,56359.0,1.46139672]
[1725555444595,0.00082,56370.0,56359.0,1.46339672]
[1725555445704,0.00082,56370.0,56359.0,1.46139672]
[1725555445913,0.178219,56370.0,56359.0,1.46139672]
[1725555446116,0.00082,56370.0,56359.0,1.46139672]
[1725555447027,0.00082,56370.0,56359.0,1.81826372]
[1725555447252,0.00082,56370.0,56359.0,1.82826372]
[1725555447464,0.00082,56370.0,56359.0,2.23176372]
[1725555447684,1e-06,56360.0,56359.0,2.60963072]
[1725555448101,1e-06,56360.0,56359.0,2.88480664]
[1725555449437,1e-06,56360.0,56359.0,2.87080664]
[1725555449664,1e-06,56360.0,56359.0,2.88480664]
[1725555450136,1e-06,56360.0,56359.0,2.65227577]
[1725555450360,1e-06,56360.0,56359.0,3.00714277]
[1725555450589,1e-06,56360.0,56359.0,2.68027577]
[1725555450855,1e-06,56360.0,56359.0,2.66627577]
[1725555451324,1e-06,56360.0,56359.0,2.68027577]
[1725555453226,1e-06,56362.0,56361.0,1.99955376]
[1725555453448,0.00082,56370.0,56364.0,0.98494176]
[1725555453672,0.00082,56370.0,56364.0,2.47776064]
[1725555453877,0.00082,56370.0,56369.0,1.41949768]
[1725555454123,0.00082,56370.0,56369.0,2.42761664]
[1725555454352,0.00082,56384.0,56369.0,2.42761664]
[1725555454353,0.00082,56384.0,56383.0,0.01585176]
[1725555454588,0.00082,56384.0,56383.0,2.01606721]
[1725555454799,0.00082,56384.0,56383.0,2.01252064]
[1725555455016,0.00082,56384.0,56383.0,2.36723664]
[1725555455231,0.00082,56384.0,56383.0,2.38923664]
[1725555455468,1e-06,56384.0,56383.0,3.14525264]
[1725555455675,1e-06,56384.0,56383.0,3.19737128]
[1725555455901,0.00082,56388.0,56387.0,2.27695176]
[1725555456116,1e-06,56388.0,56387.0,3.14508964]
[1725555456358,1e-06,56388.0,56387.0,3.49845822]
[1725555456571,0.1202,56408.0,56392.0,2.27488176]
[1725555456793,0.00082,56417.0,56392.0,2.83832864]
[1725555456794,1e-06,56393.0,56392.0,2.83832864]
[1725555457017,1e-06,56393.0,56392.0,3.19298864]
[1725555457512,0.03740576,56416.0,56415.0,0.54762376]
[1725555457735,0.03740576,56416.0,56415.0,0.90213876]
[1725555458376,0.03740576,56416.0,56415.0,0.54762376]
[1725555459906,0.03740576,56416.0,56415.0,0.93013876]
[1725555460150,0.03740576,56416.0,56415.0,0.57562376]
[1725555460648,0.15790576,56416.0,56415.0,0.57562376]
[1725555461092,0.15790576,56416.0,56415.0,0.22110876]
[1725555461336,0.15790576,56416.0,56415.0,0.04385176]
[1725555461560,0.33515976,56416.0,56415.0,0.04385176]
[1725555462006,0.68966876,56416.0,56415.0,0.04385176]
[1725555462233,0.15790576,56416.0,56415.0,0.57562376]
[1725555462436,0.1205,56416.0,56415.0,0.93013876]
[1725555462682,0.00082,56417.0,56416.0,0.891272]
[1725555462894,0.00082,56417.0,56416.0,2.01158864]
[1725555463108,0.00082,56417.0,56416.0,1.65707964]
[1725555463806,0.00082,56417.0,56416.0,1.64707964]
[1725555464027,0.00082,56417.0,56416.0,1.43214372]
[1725555464234,0.00082,56417.0,56416.0,0.91612376]
[1725555464474,0.00082,56417.0,56416.0,0.90212376]
[1725555464682,0.00082,56417.0,56416.0,1.43214372]
[1725555465374,0.28502,56417.0,56416.0,0.54761476]
[1725555465606,0.28502,56417.0,56416.0,0.90212376]
[1725555465817,0.11892,56417.0,56416.0,0.91612376]
[1725555466035,0.11892,56417.0,56416.0,0.93012376]
[1725555466158,0.11892,56417.0,56416.0,0.90212376]
[1725555466387,0.11892,56417.0,56416.0,0.91612376]
[1725555466586,0.00082,56417.0,56416.0,1.28463276]
[1725555466800,0.00082,56417.0,56416.0,1.27063276]
[1725555467229,0.00082,56417.0,56416.0,1.28463276]
[1725555468425,0.00082,56417.0,56416.0,0.93012376]
[1725555470527,0.00082,56417.0,56416.0,1.59657064]
[1725555470721,0.12490095,56432.0,56431.0,0.90188876]
[1725555471146,0.00013,56445.0,56444.0,0.00085176]
[1725555471336,0.00013,56445.0,56444.0,0.01275176]
[1725555471597,0.16703,56445.0,56444.0,0.01275176]
[1725555471794,0.69852,56445.0,56444.0,0.01275176]
[1725555472244,0.16703,56445.0,56444.0,0.01275176]
[1725555472705,0.00013,56445.0,56444.0,0.89858376]
[1725555473149,0.00013,56445.0,56444.0,0.19891776]
[1725555473352,0.00013,56445.0,56444.0,0.02175176]
[1725555473788,0.12203,56445.0,56444.0,0.55679392]
[1725555474005,0.00013,56445.0,56444.0,1.26191676]
[1725555474225,0.00013,56445.0,56444.0,1.47885268]
[1725555474439,0.00013,56445.0,56444.0,1.48885268]
[1725555474669,0.00013,56445.0,56444.0,2.19589664]
[1725555474874,0.00013,56445.0,56444.0,2.57022964]
[1725555475079,0.00013,56445.0,56444.0,2.67022964]
[1725555475290,0.00013,56445.0,56444.0,2.66022964]
[1725555475527,0.00013,56445.0,56444.0,2.67422964]
[1725555475738,0.00013,56445.0,56444.0,2.49465108]
[1725555475972,0.00013,56445.0,56444.0,2.45659664]
[1725555476872,0.00013,56445.0,56444.0,2.47059664]
[1725555477076,0.00013,56445.0,56444.0,2.45659664]
[1725555477529,0.21720207,56467.0,56466.0,0.01275176]
[1725555477744,0.57139107,56467.0,56466.0,0.01275176]
[1725555477972,0.93362954,56467.0,56466.0,0.01275176]
[1725555478385,0.53133,56462.0,56461.0,0.00775176]
[1725555478632,0.531339,56461.0,56460.0,0.00775176]
[1725555478846,0.531349,56460.0,56459.0,0.00775176]
[1725555479065,0.885597,56459.0,56458.0,0.00775176]
[1725555479535,0.177138,56453.0,56452.0,0.01275176]
[1725555479737,0.885707,56452.0,56451.0,0.00775176]
[1725555479962,0.531424,56452.0,56451.0,0.00775176]
[1725555480194,0.885707,56452.0,56451.0,0.00775176]